[Event "2nd Cambridge Open 2024"]
[Site "Cambridge"]
[Date "2024.02.21"]
[Round "5.42"]
[White "Blauhut, Holger"]
[Black "Chan, Michelle (Ngo Yu)"]
[Result "1-0"]
[ECO "C56"]
[WhiteElo "2016"]
[BlackElo "1681"]
[Annotator "RC"]
[PlyCount "95"]
[EventDate "2024.02.18"]
[EventType "swiss"]
[EventCountry "ENG"]
[SourceTitle "playchess.com"]
[Source "ChessBase"]
[SourceQuality "1"]
[TimeControl "5400+30"]

1. e4 {[%emt 0:00:06]} e5 {[%emt 0:00:03]} 2. Nf3 {[%emt 0:00:08]} Nc6 {[%emt 0:00:05]} 3. Bc4 {[%emt 0:00:06]} Bc5 {[%emt 0:00:15]} 4. c3 {[%emt 0:00:12]} Nf6 {[%emt 0:00:04]} 5. d4 {[%emt 0:00:41]} exd4 {[%emt 0:00:05]} 6. O-O {[%emt 0:00:08]} dxc3 {[%emt 0:00:54]} 7. e5 {[%emt 0:00:19]} d5 {[%emt 0:01:16]} 8. exf6 {[%emt 0:00:09]} dxc4 {[%emt 0:00:09]} 9. Qxd8+ {[%emt 0:00:21]} Nxd8 {[%emt 0:00:50]} 10. fxg7 {[%emt 0:00:28]} Rg8 {[%emt 0:00:21]} 11. Nxc3 {[%emt 0:01:02]} Rxg7 {[%emt 0:00:58]} 12. Nd5 {[%emt 0:00:45]} Ne6 {[%emt 0:06:13]} 13. Re1 {[%emt 0:06:14]} Kd8 {[%emt 0:02:50]} 14. Ne5 {[%emt 0:02:05]} Bd6 {[%emt 0:05:18]} 15. Bh6 {[%emt 0:23:51]} Bxe5 {[%emt 0:00:37]} 16. Rxe5 {[%emt 0:00:05]} Rg6 {[%emt 0:00:35]} 17. Rd1 {[%emt 0:00:21]} Bd7 {[%emt 0:03:31]} 18. Rh5 {[%emt 0:04:25]} c6 {[%emt 0:08:53]} 19. Nf4 {[%emt 0:05:01]} Nxf4 {[%emt 0:08:51]} 20. Bxf4 {[%emt 0:00:08]} Ke7 {[%emt 0:03:07]} 21. Rxh7 {[%emt 0:03:47]} Bg4 {[%emt 0:01:16]} 22. Re1+ {[%emt 0:01:17]} Be6 {[%emt 0:00:14]} 23. f3 {[%emt 0:08:01]} Rag8 {[%emt 0:06:03]} 24. Bg3 {[%emt 0:00:22]} R8g7 {[%emt 0:00:59]} 25. Rh4 {[%emt 0:01:09]} Kd7 {[%emt 0:01:54]} 26. Re2 {[%emt 0:02:10]} Bd5 {[%emt 0:00:28]} 27. Rf4 {[%emt 0:01:27]} Re6 {[%emt 0:03:22]} 28. Rd2 {[%emt 0:01:15]} Ke8 {[%emt 0:01:36]} 29. Bf2 {[%emt 0:01:34]} a6 {[%emt 0:00:32]} 30. g4 {[%emt 0:01:13]} Rgg6 {[%emt 0:08:27]} 31. Kg2 {[%emt 0:05:27]} f5 {[%emt 0:03:08]} 32. Kg3 {[%emt 0:00:59]} fxg4 {[%emt 0:00:54]} 33. fxg4 {[%emt 0:00:08]} b5 {[%emt 0:00:52]} 34. h4 {[%emt 0:02:53]} b4 {[%emt 0:01:16]} 35. Bd4 {[%emt 0:03:10]} a5 {[%emt 0:02:50]} 36. Rdf2 {[%emt 0:01:27]} Rg8 {[%emt 0:00:50]} 37. g5 {[%emt 0:04:29]} Kd7 {[%emt 0:03:22]} 38. Bc5 {[%emt 0:04:02]} Re4 {[%emt 0:00:27]} 39. Rxe4 {[%emt 0:01:11]} Bxe4 {[%emt 0:00:03]} 40. Kf4 {[%emt 0:00:07]} Bd3 {[%emt 0:01:03]} 41. h5 {[%emt 0:02:22]} Ke6 {[%emt 0:01:47]} 42. Rf3 {[%emt 0:01:08]} Kd5 {[%emt 0:00:47]} 43. Be7 {[%emt 0:01:17]} Re8 {[%emt 0:00:29]} 44. Bf6 {[%emt 0:00:12]} Re4+ {[%emt 0:00:37]} 45. Kg3 {[%emt 0:00:07]} Be2 {[%emt 0:00:36]} 46. Rf5+ {[%emt 0:00:51]} Kd6 {[%emt 0:00:16]} 47. h6 {[%emt 0:00:53]} Re8 {[%emt 0:01:04]} 48. Re5 {[%emt 0:01:12]} 1-0

[Event "2nd Cambridge Open 2024"]
[Site "Cambridge"]
[Date "2024.02.21"]
[Round "5.43"]
[White "Iyengar, Ilya"]
[Black "Maton, Emily"]
[Result "1/2-1/2"]
[ECO "D03"]
[WhiteElo "1972"]
[BlackElo "1736"]
[Annotator "RC"]
[PlyCount "79"]
[EventDate "2024.02.18"]
[EventType "swiss"]
[EventCountry "ENG"]
[SourceTitle "playchess.com"]
[Source "ChessBase"]
[SourceQuality "1"]
[TimeControl "5400+30"]

1. d4 {[%emt 0:00:07]} Nf6 {[%emt 0:00:05]} 2. Nf3 {[%emt 0:00:12]} e6 {[%emt 0:00:07]} 3. Bg5 {[%emt 0:00:10]} c5 {[%emt 0:00:08]} 4. e3 {[%emt 0:00:21]} d5 {[%emt 0:00:12]} 5. c3 {[%emt 0:01:03]} h6 {[%emt 0:01:19]} 6. Bh4 {[%emt 0:01:08]} Nc6 {[%emt 0:00:55]} 7. Nbd2 {[%emt 0:02:37]} Be7 {[%emt 0:02:01]} 8. Bd3 {[%emt 0:00:38]} Qc7 {[%emt 0:02:00]} 9. Bg3 {[%emt 0:07:30]} Qb6 {[%emt 0:01:57]} 10. Qc2 {[%emt 0:10:21]} Bd7 {[%emt 0:05:34]} 11. h3 {[%emt 0:28:48]} Rc8 {[%emt 0:04:42]} 12. a3 {[%emt 0:01:57]} cxd4 {[%emt 0:04:23]} 13. exd4 {[%emt 0:00:15]} Na5 {[%emt 0:04:25]} 14. a4 {[%emt 0:16:36]} Nc4 {[%emt 0:02:27]} 15. Nxc4 {[%emt 0:02:42]} dxc4 {[%emt 0:03:26]} 16. Be2 {[%emt 0:00:17]} Bc6 {[%emt 0:04:09]} 17. O-O {[%emt 0:01:13]} Be4 {[%emt 0:07:20]} 18. Qc1 {[%emt 0:10:15]} Bd6 {[%emt 0:06:00]} 19. Ne5 {[%emt 0:01:59]} Bd5 {[%emt 0:01:54]} 20. a5 {[%emt 0:02:57]} Qc7 {[%emt 0:02:30]} 21. f4 {[%emt 0:01:14]} Ne4 {[%emt 0:02:27]} 22. Bh2 {[%emt 0:00:07]} O-O {[%emt 0:03:10]} 23. Ra4 {[%emt 0:02:26]} Bxe5 {[%emt 0:02:36]} 24. fxe5 {[%emt 0:00:12]} Qd7 {[%emt 0:00:27]} 25. Ra3 {[%emt 0:02:33]} f5 {[%emt 0:01:45]} 26. exf6 {[%emt 0:00:35]} Rxf6 {[%emt 0:00:24]} 27. Rxf6 {[%emt 0:00:42]} Nxf6 {[%emt 0:00:06]} 28. Be5 {[%emt 0:02:46]} Rf8 {[%emt 0:02:20]} 29. Ra1 {[%emt 0:02:42]} Ne4 {[%emt 0:02:48]} 30. Bf3 {[%emt 0:00:21]} Ng5 {[%emt 0:01:32]} 31. Bxd5 {[%emt 0:00:11]} exd5 {[%emt 0:00:40]} 32. a6 {[%emt 0:00:28]} b6 {[%emt 0:00:39]} 33. Qc2 {[%emt 0:00:30]} Ne4 {[%emt 0:32:32]} 34. Rf1 {[%emt 0:00:34]} Rxf1+ {[%emt 0:00:00]} 35. Kxf1 {[%emt 0:00:01]} Qb5 {[%emt 0:00:00]} 36. Qe2 {[%emt 0:00:48]} Qxa6 {[%emt 0:00:00]} 37. Kg1 {[%emt 0:00:15]} Qb7 {[%emt 0:00:00]} 38. Qg4 {[%emt 0:00:31]} Qf7 {[%emt 0:00:00]} 39. Kh2 {[%emt 0:00:14]} Nf6 {[%emt 0:00:00]} 40. Qc8+ {[%emt 0:00:31]} 1/2-1/2

[Event "2nd Cambridge Open 2024"]
[Site "Cambridge"]
[Date "2024.02.21"]
[Round "5.44"]
[White "De Coverly, Roger D"]
[Black "Reynolds, D Ian W"]
[Result "1/2-1/2"]
[ECO "C91"]
[WhiteElo "1893"]
[BlackElo "1960"]
[Annotator "RC"]
[PlyCount "99"]
[EventDate "2024.02.18"]
[EventType "swiss"]
[EventCountry "ENG"]
[SourceTitle "playchess.com"]
[Source "ChessBase"]
[SourceQuality "1"]
[TimeControl "5400+30"]

1. e4 {[%emt 0:00:04]} e5 {[%emt 0:00:05]} 2. Nf3 {[%emt 0:00:06]} Nc6 {[%emt 0:00:07]} 3. Bb5 {[%emt 0:00:05]} a6 {[%emt 0:00:06]} 4. Ba4 {[%emt 0:00:07]} Nf6 {[%emt 0:00:06]} 5. O-O {[%emt 0:00:08]} Be7 {[%emt 0:00:16]} 6. Re1 {[%emt 0:00:10]} b5 {[%emt 0:00:06]} 7. Bb3 {[%emt 0:00:04]} O-O {[%emt 0:00:09]} 8. d4 {[%emt 0:00:15]} d6 {[%emt 0:01:00]} 9. c3 {[%emt 0:00:06]} Bg4 {[%emt 0:00:41]} 10. d5 {[%emt 0:00:16]} Na5 {[%emt 0:00:23]} 11. Bc2 {[%emt 0:00:07]} c6 {[%emt 0:08:13]} 12. h3 {[%emt 0:00:14]} Bd7 {[%emt 0:01:29]} 13. Nxe5 {[%emt 0:01:02]} dxe5 {[%emt 0:01:19]} 14. d6 {[%emt 0:00:06]} Bxd6 {[%emt 0:01:55]} 15. Qxd6 {[%emt 0:00:07]} Nc4 {[%emt 0:00:28]} 16. Qd3 {[%emt 0:01:30]} Be6 {[%emt 0:07:26]} 17. b3 {[%emt 0:02:36]} Qxd3 {[%emt 0:01:29]} 18. Bxd3 {[%emt 0:00:34]} Rfd8 {[%emt 0:08:32]} 19. Bc2 {[%emt 0:01:05]} Na5 {[%emt 0:04:14]} 20. Be3 {[%emt 0:02:42]} Nd7 {[%emt 0:01:33]} 21. Nd2 {[%emt 0:02:24]} f6 {[%emt 0:01:05]} 22. a4 {[%emt 0:03:34]} Nb7 {[%emt 0:03:47]} 23. Ra3 {[%emt 0:05:33]} Ndc5 {[%emt 0:18:45]} 24. b4 {[%emt 0:08:24]} Nxa4 {[%emt 0:02:35]} 25. Bxa4 {[%emt 0:01:17]} bxa4 {[%emt 0:00:07]} 26. Rxa4 {[%emt 0:02:01]} Nd6 {[%emt 0:04:15]} 27. Rea1 {[%emt 0:04:01]} Nc4 {[%emt 0:00:42]} 28. Nf1 {[%emt 0:05:30]} Bc8 {[%emt 0:03:07]} 29. Bc5 {[%emt 0:05:44]} Rd3 {[%emt 0:02:57]} 30. Rc1 {[%emt 0:02:48]} Bb7 {[%emt 0:00:17]} 31. Ne3 {[%emt 0:01:15]} Nxe3 {[%emt 0:00:40]} 32. Bxe3 {[%emt 0:01:06]} Rad8 {[%emt 0:00:21]} 33. Kf1 {[%emt 0:03:24]} Rd1+ {[%emt 0:00:36]} 34. Rxd1 {[%emt 0:00:44]} Rxd1+ {[%emt 0:00:03]} 35. Ke2 {[%emt 0:00:18]} Rd7 {[%emt 0:00:30]} 36. f3 {[%emt 0:05:17]} Kf7 {[%emt 0:00:10]} 37. Ra5 {[%emt 0:01:04]} Ke6 {[%emt 0:01:29]} 38. Rc5 {[%emt 0:02:39]} Rd8 {[%emt 0:01:08]} 39. g3 {[%emt 0:02:10]} Rd7 {[%emt 0:00:57]} 40. f4 {[%emt 0:02:39]} exf4 {[%emt 0:01:08]} 41. gxf4 {[%emt 0:00:42]} g6 {[%emt 0:00:51]} 42. Bd4 {[%emt 0:01:27]} Kf7 {[%emt 0:03:32]} 43. h4 {[%emt 0:03:31]} Re7 {[%emt 0:02:11]} 44. Kf3 {[%emt 0:01:05]} Re6 {[%emt 0:04:06]} 45. h5 {[%emt 0:10:57]} Re7 {[%emt 0:01:20]} 46. h6 {[%emt 0:05:11]} Re8 {[%emt 0:01:50]} 47. e5 {[%emt 0:00:40]} fxe5 {[%emt 0:01:24]} 48. Bxe5 {[%emt 0:02:51]} Rd8 {[%emt 0:01:39]} 49. Bd4 {[%emt 0:00:32]} Rd5 {[%emt 0:00:24]} 50. Rxd5 {[%emt 0:00:30]} 1/2-1/2

[Event "2nd Cambridge Open 2024"]
[Site "Cambridge"]
[Date "2024.02.21"]
[Round "5.45"]
[White "OShea, Colm"]
[Black "Cole, James"]
[Result "0-1"]
[ECO "A35"]
[WhiteElo "1729"]
[BlackElo "1940"]
[Annotator "NA RC"]
[PlyCount "90"]
[EventDate "2024.02.18"]
[EventType "swiss"]
[EventCountry "ENG"]
[SourceTitle "playchess.com"]
[Source "ChessBase"]
[SourceQuality "1"]
[TimeControl "5400+30"]

1. e4 {[%emt 0:00:01]} c6 {[%emt 0:00:04]} 2. c4 {[%emt 0:00:08]} d5 {[%emt 0:00:05]} 3. cxd5 {[%emt 0:00:02]} cxd5 {[%emt 0:00:05]} 4. exd5 {[%emt 0:00:03]} Nf6 {[%emt 0:00:07]} 5. Nc3 {[%emt 0:00:03]} Nxd5 {[%emt 0:00:05]} 6. Nf3 {[%emt 0:00:21]} Nc6 {[%emt 0:00:05]} 7. Bb5 {[%emt 0:00:34]} g6 {[%emt 0:00:53]} 8. O-O {[%emt 0:01:26]} Bg7 {[%emt 0:00:16]} 9. d4 {[%emt 0:01:00]} O-O {[%emt 0:04:11]} 10. Bc4 {[%emt 0:03:53]} Nb6 {[%emt 0:02:40]} 11. Bb3 {[%emt 0:06:33]} Nxd4 {[%emt 0:00:44]} 12. Nxd4 {[%emt 0:00:08]} Qxd4 {[%emt 0:02:19]} 13. Qf3 {[%emt 0:02:44]} Qg4 {[%emt 0:03:16]} 14. Qe3 {[%emt 0:03:09]} e6 {[%emt 0:07:50]} 15. h3 {[%emt 0:00:51]} Qd4 {[%emt 0:01:31]} 16. Qf3 {[%emt 0:02:35]} Qf6 {[%emt 0:01:02]} 17. Qe2 {[%emt 0:01:36]} Bd7 {[%emt 0:03:14]} 18. Ne4 {[%emt 0:00:42]} Qe5 {[%emt 0:01:43]} 19. Re1 {[%emt 0:04:05]} Bc6 {[%emt 0:01:45]} 20. Nc3 {[%emt 0:05:08]} Qxe2 {[%emt 0:02:12]} 21. Rxe2 {[%emt 0:00:05]} Rfd8 {[%emt 0:03:35]} 22. Bg5 {[%emt 0:00:24]} Rd7 {[%emt 0:01:42]} 23. Rd1 {[%emt 0:02:17]} Rxd1+ {[%emt 0:05:48]} 24. Nxd1 {[%emt 0:00:37]} a5 {[%emt 0:02:29]} 25. a3 {[%emt 0:02:04]} h6 {[%emt 0:07:23]} 26. Bh4 {[%emt 0:00:45]} a4 {[%emt 0:03:13]} 27. Ba2 {[%emt 0:00:39]} g5 {[%emt 0:03:24]} 28. Bg3 {[%emt 0:00:34]} Rd8 {[%emt 0:01:10]} 29. Ne3 {[%emt 0:02:20]} Rd4 {[%emt 0:02:33]} 30. Bc7 {[%emt 0:03:43]} Nd5 {[%emt 0:01:51]} 31. Nxd5 {[%emt 0:00:10]} Rd1+ {[%emt 0:01:11]} 32. Kh2 {[%emt 0:00:17]} exd5 {[%emt 0:00:12]} 33. Be5 {[%emt 0:01:03]} Ra1 {[%emt 0:03:44]} 34. Bxg7 {[%emt 0:00:50]} Kxg7 {[%emt 0:00:06]} 35. b3 {[%emt 0:02:34]} axb3 {[%emt 0:00:55]} 36. Bxb3 {[%emt 0:00:06]} Rxa3 {[%emt 0:00:21]} 37. Rb2 {[%emt 0:01:39]} Kf6 {[%emt 0:01:58]} 38. Kg1 {[%emt 0:00:47]} Ra1+ {[%emt 0:00:35]} 39. Kh2 {[%emt 0:00:05]} Rc1 {[%emt 0:01:15]} 40. Rd2 {[%emt 0:00:18]} Ke5 {[%emt 0:02:09]} 41. f3 {[%emt 0:00:09]} Rc3 {[%emt 0:00:23]} 42. Ba2 {[%emt 0:00:34]} Ra3 {[%emt 0:01:23]} 43. Kg3 {[%emt 0:00:27]} Ra4 {[%emt 0:00:12]} 44. Kf2 {[%emt 0:00:22]} h5 {[%emt 0:00:25]} 45. Ke2 {[%emt 0:02:12]} f6 {[%emt 0:00:38]} 0-1

[Event "2nd Cambridge Open 2024"]
[Site "Cambridge"]
[Date "2024.02.21"]
[Round "5.46"]
[White "Keohane, Ben"]
[Black "Spanton, Tim R"]
[Result "1-0"]
[ECO "C30"]
[WhiteElo "1926"]
[BlackElo "1736"]
[Annotator "RC"]
[PlyCount "134"]
[EventDate "2024.02.18"]
[EventType "swiss"]
[EventCountry "ENG"]
[SourceTitle "playchess.com"]
[Source "ChessBase"]
[SourceQuality "1"]
[TimeControl "5400+30"]

1. e4 {[%emt 0:00:02]} e5 {[%emt 0:00:10]} 2. f4 {[%emt 0:00:06]} Bc5 {[%emt 0:00:05]} 3. Nf3 {[%emt 0:00:03]} d5 {[%emt 0:00:05]} 4. Nxe5 {[%emt 0:06:40]} dxe4 {[%emt 0:00:13]} 5. Qh5 {[%emt 0:15:08]} Be6 {[%emt 0:00:07]} 6. Nxf7 {[%emt 0:04:16]} Bf2+ {[%emt 0:00:07]} 7. Kxf2 {[%emt 0:00:31]} Bxf7 {[%emt 0:00:08]} 8. Qe5+ {[%emt 0:00:59]} Ne7 {[%emt 0:00:07]} 9. Qxg7 {[%emt 0:11:38]} Rg8 {[%emt 0:00:08]} 10. Qe5 {[%emt 0:00:04]} Nbc6 {[%emt 0:02:50]} 11. Qc5 {[%emt 0:13:09]} Nd5 {[%emt 0:05:44]} 12. g3 {[%emt 0:19:39]} Nxf4 {[%emt 0:01:15]} 13. d3 {[%emt 0:03:47]} Ne6 {[%emt 0:04:17]} 14. Qc3 {[%emt 0:04:42]} Ncd4 {[%emt 0:04:03]} 15. dxe4 {[%emt 0:03:56]} Qf6+ {[%emt 0:00:19]} 16. Kg2 {[%emt 0:00:56]} O-O-O {[%emt 0:01:40]} 17. Bc4 {[%emt 0:01:31]} Nf4+ {[%emt 0:04:34]} 18. Bxf4 {[%emt 0:00:50]} Qxf4 {[%emt 0:02:25]} 19. Bxf7 {[%emt 0:09:56]} Qxe4+ {[%emt 0:00:42]} 20. Kh3 {[%emt 0:00:06]} Qf5+ {[%emt 0:06:38]} 21. Kg2 {[%emt 0:00:03]} Qxf7 {[%emt 0:00:34]} 22. Nd2 {[%emt 0:01:01]} Qd5+ {[%emt 0:01:31]} 23. Nf3 {[%emt 0:00:12]} Rgf8 {[%emt 0:00:32]} 24. Rhf1 {[%emt 0:00:23]} Nxf3 {[%emt 0:00:37]} 25. Rxf3 {[%emt 0:00:21]} Qd2+ {[%emt 0:02:38]} 26. Kg1 {[%emt 0:02:07]} Rxf3 {[%emt 0:00:46]} 27. Qxf3 {[%emt 0:00:02]} Qxc2 {[%emt 0:00:27]} 28. Qg4+ {[%emt 0:01:22]} Kb8 {[%emt 0:00:11]} 29. Qg5 {[%emt 0:00:02]} Qd3 {[%emt 0:04:31]} 30. Rf1 {[%emt 0:00:47]} b6 {[%emt 0:01:13]} 31. Qf5 {[%emt 0:00:53]} Qd4+ {[%emt 0:03:24]} 32. Rf2 {[%emt 0:00:13]} Rd7 {[%emt 0:04:46]} 33. Kg2 {[%emt 0:00:22]} Kb7 {[%emt 0:02:01]} 34. b3 {[%emt 0:00:15]} a5 {[%emt 0:00:52]} 35. Qf3+ {[%emt 0:00:19]} Qd5 {[%emt 0:01:30]} 36. Qxd5+ {[%emt 0:00:20]} Rxd5 {[%emt 0:00:07]} 37. h4 {[%emt 0:00:05]} h5 {[%emt 0:00:36]} 38. Rc2 {[%emt 0:00:45]} Rd3 {[%emt 0:00:50]} 39. Re2 {[%emt 0:00:20]} Kc6 {[%emt 0:00:41]} 40. Re6+ {[%emt 0:01:09]} Kd5 {[%emt 0:00:46]} 41. Rh6 {[%emt 0:00:27]} Ke4 {[%emt 0:00:19]} 42. Rxh5 {[%emt 0:00:22]} Rd2+ {[%emt 0:00:07]} 43. Kh3 {[%emt 0:00:12]} Rxa2 {[%emt 0:00:14]} 44. Rb5 {[%emt 0:00:25]} Kf3 {[%emt 0:02:09]} 45. Rf5+ {[%emt 0:00:25]} Ke4 {[%emt 0:00:20]} 46. Kg4 {[%emt 0:01:05]} Rb2 {[%emt 0:00:31]} 47. Rb5 {[%emt 0:00:51]} Rd2 {[%emt 0:01:22]} 48. h5 {[%emt 0:00:30]} Rd6 {[%emt 0:00:34]} 49. Rg5 {[%emt 0:00:13]} c5 {[%emt 0:00:27]} 50. Rg6 {[%emt 0:00:13]} Rd4 {[%emt 0:01:24]} 51. Rxb6 {[%emt 0:00:17]} Kd3+ {[%emt 0:01:31]} 52. Kf5 {[%emt 0:00:52]} a4 {[%emt 0:02:05]} 53. bxa4 {[%emt 0:00:17]} c4 {[%emt 0:00:07]} 54. h6 {[%emt 0:00:46]} c3 {[%emt 0:00:14]} 55. h7 {[%emt 0:00:22]} Rd8 {[%emt 0:00:43]} 56. Rc6 {[%emt 0:01:24]} c2 {[%emt 0:02:40]} 57. Kg6 {[%emt 0:00:10]} Kd2 {[%emt 0:00:35]} 58. Kg7 {[%emt 0:00:29]} Rd7+ {[%emt 0:00:41]} 59. Kg8 {[%emt 0:00:01]} Rd8+ {[%emt 0:00:13]} 60. Kg7 {[%emt 0:00:33]} Rd7+ {[%emt 0:00:07]} 61. Kh6 {[%emt 0:00:50]} Rd8 {[%emt 0:00:06]} 62. g4 {[%emt 0:00:26]} c1=Q {[%emt 0:00:09]} 63. Rxc1 {[%emt 0:00:02]} Kxc1 {[%emt 0:00:30]} 64. g5 {[%emt 0:00:01]} Kd2 {[%emt 0:00:35]} 65. g6 {[%emt 0:00:13]} Kc3 {[%emt 0:00:41]} 66. g7 {[%emt 0:00:18]} Rd6+ {[%emt 0:00:07]} 67. Kg5 {[%emt 0:00:06]} Rd8 {[%emt 0:01:32]} 1-0

[Event "2nd Cambridge Open 2024"]
[Site "Cambridge"]
[Date "2024.02.21"]
[Round "5.47"]
[White "Gooding, Ian"]
[Black "Blauhut, Anna"]
[Result "1-0"]
[ECO "C49"]
[WhiteElo "1923"]
[BlackElo "1534"]
[Annotator "RC"]
[PlyCount "73"]
[EventDate "2024.02.18"]
[EventType "swiss"]
[EventCountry "ENG"]
[SourceTitle "playchess.com"]
[Source "ChessBase"]
[SourceQuality "1"]
[TimeControl "5400+30"]

1. e4 {[%emt 0:00:30]} e5 {[%emt 0:00:06]} 2. Nf3 {[%emt 0:00:00]} Nc6 {[%emt 0:00:06]} 3. Nc3 {[%emt 0:00:00]} Nf6 {[%emt 0:00:10]} 4. Bb5 {[%emt 0:00:00]} Bb4 {[%emt 0:00:13]} 5. O-O {[%emt 0:00:00]} O-O {[%emt 0:00:38]} 6. d3 {[%emt 0:00:01]} d6 {[%emt 0:00:21]} 7. Bg5 {[%emt 0:00:32]} Bxc3 {[%emt 0:00:32]} 8. bxc3 {[%emt 0:00:10]} h6 {[%emt 0:00:05]} 9. Bh4 {[%emt 0:05:23]} Bd7 {[%emt 0:00:06]} 10. Re1 {[%emt 0:02:58]} a6 {[%emt 0:01:10]} 11. Bc4 {[%emt 0:01:51]} Re8 {[%emt 0:03:22]} 12. a4 {[%emt 0:01:42]} g5 {[%emt 0:02:06]} 13. Bg3 {[%emt 0:00:46]} Ne7 {[%emt 0:00:57]} 14. Qd2 {[%emt 0:02:41]} Kg7 {[%emt 0:05:05]} 15. Bb3 {[%emt 0:11:21]} Ng6 {[%emt 0:03:03]} 16. Kh1 {[%emt 0:15:59]} Nh5 {[%emt 0:04:23]} 17. d4 {[%emt 0:01:37]} Qe7 {[%emt 0:06:24]} 18. Rad1 {[%emt 0:04:08]} Rad8 {[%emt 0:00:11]} 19. Qc1 {[%emt 0:02:26]} Bg4 {[%emt 0:02:24]} 20. Re3 {[%emt 0:01:52]} Nhf4 {[%emt 0:03:03]} 21. Rde1 {[%emt 0:08:50]} Qf6 {[%emt 0:02:23]} 22. Ng1 {[%emt 0:02:30]} exd4 {[%emt 0:02:15]} 23. cxd4 {[%emt 0:00:00]} Qxd4 {[%emt 0:00:27]} 24. f3 {[%emt 0:00:37]} Bd7 {[%emt 0:02:38]} 25. Rd1 {[%emt 0:00:55]} Qf6 {[%emt 0:01:43]} 26. Be1 {[%emt 0:00:49]} Kg8 {[%emt 0:01:27]} 27. Bc3 {[%emt 0:02:05]} Qe7 {[%emt 0:00:56]} 28. Qd2 {[%emt 0:02:58]} Ne6 {[%emt 0:02:30]} 29. Ne2 {[%emt 0:01:54]} Nc5 {[%emt 0:06:34]} 30. Ng3 {[%emt 0:03:42]} Nf4 {[%emt 0:01:58]} 31. Rde1 {[%emt 0:08:28]} Bc8 {[%emt 0:02:25]} 32. Nf5 {[%emt 0:01:54]} Qf8 {[%emt 0:01:49]} 33. Bg7 {[%emt 0:02:31]} Nxb3 {[%emt 0:01:55]} 34. cxb3 {[%emt 0:00:10]} Qxg7 {[%emt 0:00:36]} 35. Nxg7 {[%emt 0:00:06]} Kxg7 {[%emt 0:00:07]} 36. Qc3+ {[%emt 0:01:56]} f6 {[%emt 0:01:36]} 37. Qxc7+ {[%emt 0:00:41]} 1-0

[Event "2nd Cambridge Open 2024"]
[Site "Cambridge"]
[Date "2024.02.22"]
[Round "6.1"]
[White "Sonis, Francesco"]
[Black "Haubro, Martin"]
[Result "1/2-1/2"]
[ECO "A06"]
[WhiteElo "2573"]
[BlackElo "2418"]
[Annotator "TA"]
[PlyCount "97"]
[EventDate "2024.02.18"]
[EventType "swiss"]
[EventCountry "ENG"]
[SourceTitle "playchess.com"]
[Source "ChessBase"]
[SourceQuality "1"]
[TimeControl "5400+30"]

{[%evp 12,97,26,20,30,27,17,13,22,15,26,12,17,18,21,20,29,10,29,13,18,-7,29,63,51,13,10,0,0,0,54,72,53,55,55,47,48,55,54,78,78,71,75,81,98,103,106,116,102,7,4,-14,-20,-64,-64,-70,-65,-18,-18,-68,-68,-68,-68,-68,-68,-68,-68,-68,-68,-68,-68,-68,-8,-8,-8,-8,-8,-8,-8,-8,-8,-8,-8,-8,-8,-8,-8,-8]} 1. Nf3 {[%emt 0:00:03]} d5 {[%emt 0:00:05]} 2. e3 {[%emt 0:00:04]} Nf6 {[%emt 0:03:27]} 3. c4 {[%emt 0:01:03]} e6 {[%emt 0:00:44]} 4. b3 {[%emt 0:00:13]} Nbd7 {[%emt 0:05:01]} 5. Bb2 {[%emt 0:00:14]} c6 {[%emt 0:01:29]} 6. d4 {[%emt 0:00:19]} Bd6 {[%emt 0:00:46]} 7. Bd3 {[%emt 0:00:06]} b6 {[%emt 0:06:03]} 8. O-O {[%emt 0:00:22]} Bb7 {[%emt 0:00:19]} 9. Nbd2 {[%emt 0:06:34]} Qc7 {[%emt 0:11:18]} 10. Rc1 {[%emt 0:01:41]} O-O {[%emt 0:00:50]} 11. a3 {[%emt 0:06:04]} a5 {[%emt 0:02:12]} 12. Qc2 {[%emt 0:00:25]} Rac8 {[%emt 0:01:32]} 13. Rfe1 {[%emt 0:03:21]} Rfd8 {[%emt 0:06:28]} 14. Qb1 {[%emt 0:09:56]} Qb8 {[%emt 0:02:14]} 15. h3 {[%emt 0:06:00]} h6 {[%emt 0:00:14]} 16. Qa1 {[%emt 0:01:43]} c5 {[%emt 0:02:50]} 17. cxd5 {[%emt 1:00:52]} Nxd5 {[%emt 0:03:55]} 18. Bb5 {[%emt 0:00:00]} (18. dxc5 {feels hotter.} Nxc5 19. Rxc5 Bxc5 20. Bxg7 Bf8 21. Bxf8 Rxf8 22. Qd4) 18... Bf8 {[%emt 0:12:57]} 19. e4 {[%emt 0:00:00]} N5f6 {[%emt 0:06:16]} 20. dxc5 {[%emt 0:00:00]} Nxc5 {[%emt 0:04:54]} (20... Rxc5 $11 21. Rxc5 Bxc5) 21. Bxf6 $14 {[%emt 0:00:00]} gxf6 {[%emt 0:00:04]} 22. Qxf6 {[%emt 0:00:00]} Bg7 {[%emt 0:00:07] Prevents Ne5} 23. Qh4 {[%emt 0:00:00]} Nd3 {[%emt 0:02:32]} 24. Rxc8 {[%emt 0:00:00]} Qxc8 {[%emt 0:00:04]} 25. Re3 {[%emt 0:00:00]} Nb2 {[%emt 0:00:22]} 26. Be2 {[%emt 0:00:00]} Rd7 {[%emt 0:01:15]} 27. e5 {[%emt 0:00:00]} (27. Qf4 {simplifies} Qc7 28. e5 Bxf3 29. Nxf3 Nd1 30. Bxd1 Rxd1+ 31. Kh2) 27... Qc1+ {[%emt 0:00:52]} 28. Kh2 $1 {[%emt 0:00:00]} Rxd2 {[%emt 0:04:04]} 29. Nxd2 {[%emt 0:00:00]} Qxd2 {[%emt 0:00:05] [#]} 30. Rg3 {[%emt 0:00:00]} Kh7 $1 $11 {[%emt 0:04:12]} (30... Qxe2 $2 {too greedy.} 31. Qf6 $18 (31. Qxh6 $2 {is the wrong capture.} Qxe5 32. Qd2 Be4 $19) (31. Qxh6 $2 Qxe5 32. Qd2 Be4 $19)) 31. Qg4 {[%emt 0:00:00]} Qg5 {[%emt 0:00:06]} ({Weaker is} 31... Bxe5 32. Qg8#) 32. Qxg5 {[%emt 0:00:00]} hxg5 {[%emt 0:00:05]} 33. Rxg5 {[%emt 0:00:00]} Bd5 {[%emt 0:02:09]} 34. b4 {[%emt 0:00:00]} Nc4 {[%emt 0:02:41]} 35. Bd3+ {[%emt 0:00:00]} ({White should try} 35. f4 $11) 35... Kh8 $1 $15 {[%emt 0:01:45]} 36. Bxc4 {[%emt 0:00:00]} Bxc4 {[%emt 0:00:05]} 37. bxa5 {[%emt 0:00:00]} bxa5 {[%emt 0:00:05]} 38. Rxg7 {[%emt 0:03:26]} Kxg7 {[%emt 0:00:07][%mdl 4096] Endgame. KB-KP} 39. f4 {[%emt 0:00:03]} Kf8 {[%emt 0:11:58]} 40. g4 {[%emt 0:00:06]} Ke7 {[%emt 0:00:03]} 41. h4 {[%emt 0:02:37][%cal Bh3h4,Bh4h5,Bh5h6][%mdl 32]} f6 {[%emt 0:03:04]} (41... Be2 $15 42. Kg3 f5 43. exf6+ Kxf6) 42. exf6+ $11 {[%emt 0:00:38] The position is equal.} Kxf6 {[%emt 0:00:05]} 43. Kg3 {[%emt 0:00:16]} Be2 {[%emt 0:01:19]} 44. h5 {[%emt 0:00:03]} a4 {[%emt 0:00:06]} 45. h6 {[%emt 0:02:09]} Bd3 {[%emt 0:01:07]} 46. Kf3 {[%emt 0:00:32]} Bc2 {[%emt 0:00:16]} 47. Ke3 {[%emt 0:00:17]} Kf7 {[%emt 0:00:50]} 48. Kd4 {[%emt 0:00:40]} Bd1 {[%emt 0:00:35]} 49. f5 {[%emt 0:00:13] Weighted Error Value: White=0.11 (very precise) /Black=0.07 (flawless) .  Mistake:       	White=2     	Black=2      Inaccurate:     	White=2     	Black=1      OK:         	White=18    	Black=6      Best:        	White=2     	Black=1      Strong:       	White=1     	Black=2} 1/2-1/2